[Event "Early-Titled-Tuesday-Blitz-March-26-2024"]
[Site "Chess.com"]
[Date "2024.03.26"]
[Round "1"]
[White "Kazmin_Semyon"]
[Black "MikeSailer"]
[Result "1-0"]
[WhiteElo "2569"]
[BlackElo "2063"]
[TimeControl "180+1"]
[EndTime "8:06:30 PDT"]
[Termination "Kazmin_Semyon won by resignation"]

1. e4 {[%clk 0:03:00.9]} 1... d5 {[%clk 0:02:59.4]} 2. exd5 {[%clk 0:02:59.3]}
2... Qxd5 {[%clk 0:02:58.9]} 3. Nc3 {[%clk 0:02:59.4]} 3... Qd6 {[%clk
0:02:57.6]} 4. d4 {[%clk 0:02:59.2]} 4... c6 {[%clk 0:02:57.3]} 5. g3 {[%clk
0:02:59.1]} 5... Nf6 {[%clk 0:02:57.5]} 6. Bg2 {[%clk 0:02:59.5]} 6... Bf5
{[%clk 0:02:49.9]} 7. Nf3 {[%clk 0:02:56.6]} 7... e6 {[%clk 0:02:50.3]} 8. a3
{[%clk 0:02:56.1]} 8... a5 {[%clk 0:02:49.7]} 9. O-O {[%clk 0:02:54.7]} 9... Qc7
{[%clk 0:02:49.5]} 10. Ne5 {[%clk 0:02:51.9]} 10... Nbd7 {[%clk 0:02:47.7]} 11.
Nc4 {[%clk 0:02:49.7]} 11... Nb6 {[%clk 0:02:40.1]} 12. Bf4 {[%clk 0:02:48.9]}
12... Qd8 {[%clk 0:02:40.6]} 13. Ne3 {[%clk 0:02:44.3]} 13... Bg6 {[%clk
0:02:39.7]} 14. Re1 {[%clk 0:02:14.3]} 14... Bd6 {[%clk 0:02:38.3]} 15. Qf3
{[%clk 0:02:08.5]} 15... O-O {[%clk 0:02:32.7]} 16. Rad1 {[%clk 0:02:07.9]}
16... Bxf4 {[%clk 0:02:30.7]} 17. Qxf4 {[%clk 0:02:08.4]} 17... Nbd5 {[%clk
0:02:30.3]} 18. Nexd5 {[%clk 0:02:05]} 18... Nxd5 {[%clk 0:02:30.5]} 19. Nxd5
{[%clk 0:02:05.5]} 19... cxd5 {[%clk 0:02:29.3]} 20. c3 {[%clk 0:02:06.1]} 20...
b5 {[%clk 0:02:28.9]} 21. h4 {[%clk 0:02:05.6]} 21... h6 {[%clk 0:02:28.1]} 22.
Bf3 {[%clk 0:01:46]} 22... b4 {[%clk 0:02:14.1]} 23. axb4 {[%clk 0:01:46.9]}
23... axb4 {[%clk 0:02:14]} 24. h5 {[%clk 0:01:41.1]} 24... Bh7 {[%clk
0:02:03.6]} 25. Kg2 {[%clk 0:01:39]} 25... bxc3 {[%clk 0:02:01.5]} 26. bxc3
{[%clk 0:01:39.9]} 26... Ra2 {[%clk 0:02:01.5]} 27. g4 {[%clk 0:01:36.5]} 27...
Qa5 {[%clk 0:01:56]} 28. Re3 {[%clk 0:01:31.6]} 28... Rc2 {[%clk 0:01:52.1]} 29.
g5 {[%clk 0:01:27]} 29... hxg5 {[%clk 0:01:43.7]} 30. Qxg5 {[%clk 0:01:27.9]}
30... Rxc3 {[%clk 0:01:41.7]} 31. h6 {[%clk 0:01:22.5]} 31... Bg6 {[%clk
0:01:40.1]} 32. hxg7 {[%clk 0:01:11.6]} 32... Kxg7 {[%clk 0:01:38.8]} 33. Qe5+
{[%clk 0:01:00.1]} 33... Kg8 {[%clk 0:01:36.7]} 34. Rh1 {[%clk 0:00:58.5]} 34...
f6 {[%clk 0:01:31.1]} 35. Qxe6+ {[%clk 0:00:54.5]} 35... Kg7 {[%clk 0:01:27.2]}
36. Qd7+ {[%clk 0:00:43.9]} 36... Rf7 {[%clk 0:01:26.2]} 37. Qh3 {[%clk
0:00:44.5]} 37... Rf8 {[%clk 0:00:53.8]} 38. Re7+ {[%clk 0:00:34.4]} 1-0

[Event "Early-Titled-Tuesday-Blitz-March-26-2024"]
[Site "Chess.com"]
[Date "2024.03.26"]
[Round "1"]
[White "zverr1"]
[Black "ChessLover0108"]
[Result "0-1"]
[WhiteElo "2521"]
[BlackElo "2951"]
[TimeControl "180+1"]
[EndTime "8:06:31 PDT"]
[Termination "ChessLover0108 won by checkmate"]

1. e4 {[%clk 0:03:00.9]} 1... d6 {[%clk 0:02:48.5]} 2. d4 {[%clk 0:03:01.1]}
2... Nf6 {[%clk 0:02:48.6]} 3. Nc3 {[%clk 0:03:01.8]} 3... g6 {[%clk 0:02:49.2]}
4. h3 {[%clk 0:03:01.1]} 4... Bg7 {[%clk 0:02:49.7]} 5. Be3 {[%clk 0:03:01.9]}
5... O-O {[%clk 0:02:50.4]} 6. Nge2 {[%clk 0:03:02.4]} 6... Nc6 {[%clk
0:02:50.7]} 7. g4 {[%clk 0:03:02.5]} 7... e5 {[%clk 0:02:50.7]} 8. Bg2 {[%clk
0:03:03.1]} 8... exd4 {[%clk 0:02:49]} 9. Nxd4 {[%clk 0:03:04]} 9... Re8 {[%clk
0:02:49.5]} 10. O-O {[%clk 0:03:03.1]} 10... Bd7 {[%clk 0:02:19.5]} 11. f4
{[%clk 0:02:58.6]} 11... Nxd4 {[%clk 0:02:16.6]} 12. Bxd4 {[%clk 0:02:59.5]}
12... Bc6 {[%clk 0:02:17.5]} 13. Qd3 {[%clk 0:02:56.7]} 13... Nd7 {[%clk
0:02:07.3]} 14. Bxg7 {[%clk 0:02:51.7]} 14... Kxg7 {[%clk 0:02:08.2]} 15. g5
{[%clk 0:02:40.6]} 15... Nc5 {[%clk 0:02:06.2]} 16. Qd4+ {[%clk 0:02:40.4]}
16... Kg8 {[%clk 0:02:06.9]} 17. Rae1 {[%clk 0:02:25.7]} 17... b5 {[%clk
0:01:56.2]} 18. Nd5 {[%clk 0:02:07.9]} 18... Bxd5 {[%clk 0:01:53.4]} 19. Qxd5
{[%clk 0:02:08.8]} 19... Rb8 {[%clk 0:01:48.6]} 20. h4 {[%clk 0:01:33.6]} 20...
Na4 {[%clk 0:01:26.8]} 21. h5 {[%clk 0:00:53.8]} 21... c5 {[%clk 0:01:26.7]} 22.
hxg6 {[%clk 0:00:49.6]} 22... hxg6 {[%clk 0:01:26.6]} 23. Rf3 {[%clk 0:00:39.3]}
23... Qe7 {[%clk 0:01:16.9]} 24. Rh3 {[%clk 0:00:36.8]} 24... Qe6 {[%clk
0:01:17.1]} 25. Qd1 {[%clk 0:00:15.4]} 25... b4 {[%clk 0:01:13.1]} 26. b3 {[%clk
0:00:14.3]} 26... Nc3 {[%clk 0:01:12.9]} 27. Qf3 {[%clk 0:00:15.1]} 27... Kf8
{[%clk 0:01:06.3]} 28. f5 {[%clk 0:00:13.9]} 28... gxf5 {[%clk 0:01:06.5]} 29.
Rh8+ {[%clk 0:00:13.8]} 29... Kg7 {[%clk 0:01:06.6]} 30. Rh6 {[%clk 0:00:13.1]}
30... Qe5 {[%clk 0:01:03.9]} 31. Qh5 {[%clk 0:00:13.3]} 31... Rh8 {[%clk
0:01:04]} 32. Rf1 {[%clk 0:00:08.6]} 32... f4 {[%clk 0:01:04.4]} 33. Qg4 {[%clk
0:00:05.8]} 33... Rxh6 {[%clk 0:01:02.2]} 34. gxh6+ {[%clk 0:00:06.2]} 34...
Kxh6 {[%clk 0:01:03.1]} 35. Kf2 {[%clk 0:00:06.8]} 35... Qd4+ {[%clk 0:00:59.3]}
36. Ke1 {[%clk 0:00:06.8]} 36... Qe3+ {[%clk 0:00:59.6]} 37. Qe2 {[%clk
0:00:07]} 37... Qxe2# {[%clk 0:01:00.5]} 0-1

[Event "Early-Titled-Tuesday-Blitz-March-26-2024"]
[Site "Chess.com"]
[Date "2024.03.26"]
[Round "1"]
[White "KarstenHansch"]
[Black "Rsnr"]
[Result "0-1"]
[WhiteElo "2498"]
[BlackElo "2904"]
[TimeControl "180+1"]
[EndTime "8:06:35 PDT"]
[Termination "Rsnr won by resignation"]

1. e4 {[%clk 0:03:00.9]} 1... c6 {[%clk 0:02:59.4]} 2. Nf3 {[%clk 0:03:01]} 2...
d5 {[%clk 0:02:59.6]} 3. Nc3 {[%clk 0:03:01.8]} 3... Bg4 {[%clk 0:02:58.7]} 4.
h3 {[%clk 0:03:01.9]} 4... Bh5 {[%clk 0:02:59.2]} 5. g4 {[%clk 0:03:00.6]} 5...
Bg6 {[%clk 0:02:59.5]} 6. Ne5 {[%clk 0:03:00.9]} 6... Bxe4 {[%clk 0:02:52.3]} 7.
Nxe4 {[%clk 0:03:00.2]} 7... dxe4 {[%clk 0:02:53.2]} 8. Bc4 {[%clk 0:02:58.2]}
8... e6 {[%clk 0:02:53.5]} 9. Qe2 {[%clk 0:02:55.7]} 9... Qd4 {[%clk 0:02:51.4]}
10. f4 {[%clk 0:02:55.6]} 10... Nf6 {[%clk 0:02:12.8]} 11. c3 {[%clk 0:02:46.4]}
11... Qd8 {[%clk 0:02:04.4]} 12. g5 {[%clk 0:02:41]} 12... Nd5 {[%clk
0:02:04.4]} 13. Qxe4 {[%clk 0:02:40.7]} 13... Nd7 {[%clk 0:02:00.1]} 14. d4
{[%clk 0:02:00.1]} 14... Bd6 {[%clk 0:01:43.5]} 15. Bd3 {[%clk 0:01:50.9]} 15...
g6 {[%clk 0:01:35.5]} 16. O-O {[%clk 0:01:44.3]} 16... Qe7 {[%clk 0:01:30.5]}
17. a3 {[%clk 0:01:35.9]} 17... f5 {[%clk 0:01:15]} 18. Qe2 {[%clk 0:01:16.6]}
18... Bxe5 {[%clk 0:01:14.9]} 19. dxe5 {[%clk 0:01:15]} 19... Nc5 {[%clk
0:01:10.3]} 20. c4 {[%clk 0:01:11.3]} 20... Nb6 {[%clk 0:01:06.6]} 21. Be3
{[%clk 0:01:03]} 21... h6 {[%clk 0:01:02.3]} 22. h4 {[%clk 0:00:28.8]} 22...
hxg5 {[%clk 0:01:02.2]} 23. hxg5 {[%clk 0:00:29.7]} 23... O-O-O {[%clk
0:01:00.5]} 24. Rad1 {[%clk 0:00:27.2]} 24... Rh4 {[%clk 0:00:58.4]} 25. b4
{[%clk 0:00:15.1]} 25... Nxd3 {[%clk 0:00:53.6]} 26. Rxd3 {[%clk 0:00:16]} 26...
Rdh8 {[%clk 0:00:53.9]} 27. Qg2 {[%clk 0:00:13]} 27... Rg4 {[%clk 0:00:53]} 28.
Rfd1 {[%clk 0:00:12.8]} 28... Nxc4 {[%clk 0:00:50.7]} 29. Bxa7 {[%clk
0:00:11.1]} 29... Qh7 {[%clk 0:00:43]} 0-1

[Event "Early-Titled-Tuesday-Blitz-March-26-2024"]
[Site "Chess.com"]
[Date "2024.03.26"]
[Round "1"]
[White "ChelsieMonica"]
[Black "dropstoneDP"]
[Result "0-1"]
[WhiteElo "2529"]
[BlackElo "2993"]
[TimeControl "180+1"]
[EndTime "8:06:36 PDT"]
[Termination "dropstoneDP won by checkmate"]

1. e4 {[%clk 0:03:00.9]} 1... e5 {[%clk 0:03:00]} 2. Nf3 {[%clk 0:03:00.7]} 2...
Nf6 {[%clk 0:03:00.5]} 3. Nxe5 {[%clk 0:02:59.7]} 3... d6 {[%clk 0:03:00.9]} 4.
Nf3 {[%clk 0:03:00]} 4... Nxe4 {[%clk 0:03:00.7]} 5. Nc3 {[%clk 0:03:00.5]} 5...
Nxc3 {[%clk 0:03:00.7]} 6. dxc3 {[%clk 0:03:01.4]} 6... Be7 {[%clk 0:03:01.5]}
7. Bf4 {[%clk 0:03:01.6]} 7... O-O {[%clk 0:03:01.4]} 8. Qd2 {[%clk 0:03:02.2]}
8... Nd7 {[%clk 0:03:01.9]} 9. O-O-O {[%clk 0:03:02.8]} 9... Re8 {[%clk
0:03:01.8]} 10. h4 {[%clk 0:03:02.7]} 10... h6 {[%clk 0:03:00.6]} 11. Bd3 {[%clk
0:03:00.4]} 11... Nc5 {[%clk 0:03:00.1]} 12. Nd4 {[%clk 0:02:55.1]} 12... Bf8
{[%clk 0:02:56.2]} 13. f3 {[%clk 0:02:51.8]} 13... Nxd3+ {[%clk 0:02:52.1]} 14.
Qxd3 {[%clk 0:02:50.8]} 14... Bd7 {[%clk 0:02:50.4]} 15. g4 {[%clk 0:02:48.6]}
15... c5 {[%clk 0:02:39.9]} 16. Nf5 {[%clk 0:02:47.2]} 16... Qa5 {[%clk
0:02:29.2]} 17. a3 {[%clk 0:02:44.6]} 17... c4 {[%clk 0:02:27.7]} 18. Qxc4
{[%clk 0:02:18.3]} 18... Bxf5 {[%clk 0:02:27.8]} 19. gxf5 {[%clk 0:02:18.7]}
19... Qxf5 {[%clk 0:02:28.6]} 20. Rhg1 {[%clk 0:02:13.3]} 20... Rac8 {[%clk
0:02:24.6]} 21. Qa4 {[%clk 0:02:10]} 21... b5 {[%clk 0:02:22.5]} 22. Qxa7 {[%clk
0:01:34.5]} 22... Qxf4+ {[%clk 0:02:22.4]} 23. Kb1 {[%clk 0:01:35.4]} 23... Qxh4
{[%clk 0:02:07.4]} 24. Qd7 {[%clk 0:01:32.5]} 24... Qc4 {[%clk 0:02:06.9]} 25.
Rd4 {[%clk 0:01:30.8]} 25... Qe6 {[%clk 0:02:06.9]} 26. Qxb5 {[%clk 0:01:29.8]}
26... Rc5 {[%clk 0:02:02.1]} 27. Qd3 {[%clk 0:01:29.3]} 27... d5 {[%clk
0:01:56.6]} 28. Rdg4 {[%clk 0:01:24.8]} 28... Rc4 {[%clk 0:01:53.9]} 29. R4g3
{[%clk 0:01:24.1]} 29... g5 {[%clk 0:01:48.4]} 30. b3 {[%clk 0:01:19.4]} 30...
Rc6 {[%clk 0:01:43.6]} 31. f4 {[%clk 0:01:04.6]} 31... Bg7 {[%clk 0:01:28]} 32.
Qd2 {[%clk 0:01:00.8]} 32... Qe2 {[%clk 0:01:11.6]} 33. Qxd5 {[%clk 0:00:59.5]}
33... Rxc3 {[%clk 0:01:07.1]} 34. Rxc3 {[%clk 0:00:56.5]} 34... Bxc3 {[%clk
0:01:08]} 35. b4 {[%clk 0:00:50.9]} 35... Qe3 {[%clk 0:01:02.9]} 36. Rg2 {[%clk
0:00:33.4]} 36... Bg7 {[%clk 0:00:58.1]} 37. fxg5 {[%clk 0:00:31]} 37... Qxa3
{[%clk 0:00:58.5]} 38. c3 {[%clk 0:00:12.3]} 38... Re1+ {[%clk 0:00:57.6]} 39.
Kc2 {[%clk 0:00:12.7]} 39... Qxc3# {[%clk 0:00:57.7]} 0-1

[Event "Early-Titled-Tuesday-Blitz-March-26-2024"]
[Site "Chess.com"]
[Date "2024.03.26"]
[Round "1"]
[White "ATM622"]
[Black "AlmasRakhmatullaev"]
[Result "0-1"]
[WhiteElo "2503"]
[BlackElo "2908"]
[TimeControl "180+1"]
[EndTime "8:06:37 PDT"]
[Termination "AlmasRakhmatullaev won by checkmate"]

1. d4 {[%clk 0:02:56.8]} 1... d5 {[%clk 0:03:00]} 2. c4 {[%clk 0:02:54.8]} 2...
e6 {[%clk 0:02:59.9]} 3. Nf3 {[%clk 0:02:54.4]} 3... a6 {[%clk 0:03:00.3]} 4.
Nbd2 {[%clk 0:02:53.9]} 4... Nf6 {[%clk 0:03:00.2]} 5. g3 {[%clk 0:02:53.9]}
5... dxc4 {[%clk 0:03:00.1]} 6. Nxc4 {[%clk 0:02:53.7]} 6... b5 {[%clk
0:03:00.8]} 7. Nce5 {[%clk 0:02:52.7]} 7... Bb7 {[%clk 0:03:01]} 8. Bg2 {[%clk
0:02:53]} 8... Ra7 {[%clk 0:02:55.9]} 9. O-O {[%clk 0:02:49.6]} 9... Bd6 {[%clk
0:02:54.8]} 10. Qb3 {[%clk 0:02:43.8]} 10... O-O {[%clk 0:02:49]} 11. Nxf7
{[%clk 0:02:39]} 11... Rxf7 {[%clk 0:02:45.6]} 12. Ng5 {[%clk 0:02:38.1]} 12...
Bd5 {[%clk 0:02:41.1]} 13. Bxd5 {[%clk 0:02:37.3]} 13... exd5 {[%clk 0:02:42]}
14. Nxf7 {[%clk 0:02:37.3]} 14... Kxf7 {[%clk 0:02:42.9]} 15. e4 {[%clk
0:02:35.7]} 15... Nc6 {[%clk 0:02:30.6]} 16. Be3 {[%clk 0:02:23.1]} 16... Na5
{[%clk 0:02:20.8]} 17. Qc3 {[%clk 0:02:11.1]} 17... b4 {[%clk 0:02:18.6]} 18.
Qc2 {[%clk 0:02:08.1]} 18... Nxe4 {[%clk 0:02:15.6]} 19. f3 {[%clk 0:02:03.6]}
19... Nf6 {[%clk 0:02:15.2]} 20. Rfe1 {[%clk 0:01:58.1]} 20... c6 {[%clk
0:02:09.4]} 21. Bg5 {[%clk 0:01:51.5]} 21... h6 {[%clk 0:02:04.9]} 22. Bc1
{[%clk 0:01:20.8]} 22... Qb6 {[%clk 0:01:53.5]} 23. Qf5 {[%clk 0:01:16.8]} 23...
Re7 {[%clk 0:01:50.3]} 24. Rxe7+ {[%clk 0:01:13.3]} 24... Bxe7 {[%clk
0:01:51.2]} 25. Be3 {[%clk 0:01:11.2]} 25... Nc4 {[%clk 0:01:51.3]} 26. Bf2
{[%clk 0:01:10.7]} 26... c5 {[%clk 0:01:45.3]} 27. Re1 {[%clk 0:00:57.1]} 27...
cxd4 {[%clk 0:01:45.4]} 28. g4 {[%clk 0:00:50.5]} 28... Ne3 {[%clk 0:01:43.1]}
29. Qd3 {[%clk 0:00:42.2]} 29... Bc5 {[%clk 0:01:39.8]} 30. h4 {[%clk
0:00:33.7]} 30... Qb5 {[%clk 0:01:36.8]} 31. Qb1 {[%clk 0:00:28.8]} 31... Qd7
{[%clk 0:01:31]} 32. g5 {[%clk 0:00:20.4]} 32... hxg5 {[%clk 0:01:28.8]} 33.
hxg5 {[%clk 0:00:19.6]} 33... Qh3 {[%clk 0:01:29.3]} 34. Bxe3 {[%clk 0:00:19.2]}
34... dxe3 {[%clk 0:01:26.1]} 35. Re2 {[%clk 0:00:17.2]} 35... Qg3+ {[%clk
0:01:22.4]} 36. Kf1 {[%clk 0:00:16.3]} 36... Qxf3+ {[%clk 0:01:22.8]} 37. Kg1
{[%clk 0:00:15.4]} 37... Qxe2 {[%clk 0:01:22.8]} 38. gxf6 {[%clk 0:00:15.8]}
38... Qf2+ {[%clk 0:01:22.3]} 39. Kh1 {[%clk 0:00:15.9]} 39... Qf3+ {[%clk
0:01:23]} 40. Kh2 {[%clk 0:00:14.6]} 40... Qf4+ {[%clk 0:01:22.1]} 41. Kh3
{[%clk 0:00:10.3]} 41... e2 {[%clk 0:01:17.9]} 42. Qh7 {[%clk 0:00:05.1]} 42...
Qf3+ {[%clk 0:01:15.3]} 43. Kh2 {[%clk 0:00:04.6]} 43... Bd6+ {[%clk 0:01:11.2]}
44. Kg1 {[%clk 0:00:04.9]} 44... e1=Q# {[%clk 0:01:11.4]} 0-1

[Event "Early-Titled-Tuesday-Blitz-March-26-2024"]
[Site "Chess.com"]
[Date "2024.03.26"]
[Round "1"]
[White "a-z30"]
[Black "js20000"]
[Result "0-1"]
[WhiteElo "2437"]
[BlackElo "2785"]
[TimeControl "180+1"]
[EndTime "8:06:37 PDT"]
[Termination "js20000 won on time"]

1. d3 {[%clk 0:02:47.8]} 1... d5 {[%clk 0:02:59.2]} 2. Nf3 {[%clk 0:02:48.5]}
2... Nf6 {[%clk 0:02:58.5]} 3. g3 {[%clk 0:02:49.4]} 3... Nc6 {[%clk 0:02:57.3]}
4. Bg2 {[%clk 0:02:50]} 4... e5 {[%clk 0:02:56.6]} 5. O-O {[%clk 0:02:50.9]}
5... Be7 {[%clk 0:02:55.9]} 6. Bg5 {[%clk 0:02:49.3]} 6... Be6 {[%clk
0:02:54.7]} 7. Nc3 {[%clk 0:02:49.1]} 7... d4 {[%clk 0:02:50.9]} 8. Bxf6 {[%clk
0:02:44.7]} 8... gxf6 {[%clk 0:02:51.8]} 9. Ne4 {[%clk 0:02:34.1]} 9... f5
{[%clk 0:02:49.4]} 10. Ned2 {[%clk 0:02:33.9]} 10... h5 {[%clk 0:02:48.7]} 11.
e3 {[%clk 0:02:24.7]} 11... dxe3 {[%clk 0:02:41.9]} 12. fxe3 {[%clk 0:02:22.9]}
12... h4 {[%clk 0:02:41.1]} 13. gxh4 {[%clk 0:01:59.9]} 13... Bxh4 {[%clk
0:02:37.6]} 14. d4 {[%clk 0:01:46.1]} 14... e4 {[%clk 0:02:31]} 15. Nxh4 {[%clk
0:01:10.6]} 15... Qxh4 {[%clk 0:02:30]} 16. Rf4 {[%clk 0:01:11.5]} 16... Qxh2+
{[%clk 0:02:19]} 17. Kf2 {[%clk 0:01:11.6]} 17... O-O-O {[%clk 0:02:05.3]} 18.
Qh1 {[%clk 0:01:05.1]} 18... Rxd4 {[%clk 0:01:47.9]} 19. Qxh2 {[%clk 0:00:52.9]}
19... Rxd2+ {[%clk 0:01:44.4]} 20. Kg1 {[%clk 0:00:51.3]} 20... Rxh2 {[%clk
0:01:43.4]} 21. Kxh2 {[%clk 0:00:52.2]} 21... Ne5 {[%clk 0:01:43.5]} 22. Kg1
{[%clk 0:00:28.9]} 22... Ng4 {[%clk 0:01:27.3]} 23. Rc1 {[%clk 0:00:18.1]} 23...
Nxe3 {[%clk 0:01:25.4]} 24. Bh3 {[%clk 0:00:17.8]} 24... Kd7 {[%clk 0:01:02.8]}
25. Rf2 {[%clk 0:00:15.6]} 25... Rxf2 {[%clk 0:00:57.9]} 26. Kxf2 {[%clk
0:00:15.6]} 26... f4 {[%clk 0:00:57.6]} 27. Bxe6+ {[%clk 0:00:13.7]} 27... Kxe6
{[%clk 0:00:58.5]} 28. c3 {[%clk 0:00:11.9]} 28... Ng4+ {[%clk 0:00:57.6]} 29.
Kg2 {[%clk 0:00:09.6]} 29... f5 {[%clk 0:00:56]} 30. Rh1 {[%clk 0:00:07.6]}
30... Nf6 {[%clk 0:00:50.8]} 31. Rh6 {[%clk 0:00:05.6]} 31... Ke5 {[%clk
0:00:49.9]} 32. Rh8 {[%clk 0:00:05]} 32... f3+ {[%clk 0:00:49.5]} 33. Kg3 {[%clk
0:00:05]} 33... f4+ {[%clk 0:00:49.4]} 34. Kf2 {[%clk 0:00:05.1]} 34... Ng4+
{[%clk 0:00:49.3]} 35. Kf1 {[%clk 0:00:05.1]} 35... e3 {[%clk 0:00:49.5]} 0-1

[Event "Early-Titled-Tuesday-Blitz-March-26-2024"]
[Site "Chess.com"]
[Date "2024.03.26"]
[Round "1"]
[White "dealshark"]
[Black "Bilan_Danila"]
[Result "0-1"]
[WhiteElo "2318"]
[BlackElo "2648"]
[TimeControl "180+1"]
[EndTime "8:06:37 PDT"]
[Termination "Bilan_Danila won by resignation"]

1. Nf3 {[%clk 0:03:00.9]} 1... d5 {[%clk 0:02:59.2]} 2. e3 {[%clk 0:03:01]} 2...
Nf6 {[%clk 0:02:58.7]} 3. c4 {[%clk 0:03:01]} 3... c6 {[%clk 0:02:56.9]} 4. Nc3
{[%clk 0:03:01.2]} 4... e6 {[%clk 0:02:42.8]} 5. b3 {[%clk 0:03:01.3]} 5... Nbd7
{[%clk 0:02:35.3]} 6. d4 {[%clk 0:03:00.2]} 6... Bb4 {[%clk 0:02:25.2]} 7. Bd2
{[%clk 0:02:55.4]} 7... O-O {[%clk 0:02:23]} 8. Bd3 {[%clk 0:02:53.7]} 8... Qe7
{[%clk 0:02:19.2]} 9. O-O {[%clk 0:02:53.3]} 9... e5 {[%clk 0:01:55.5]} 10. dxe5
{[%clk 0:02:49.6]} 10... Nxe5 {[%clk 0:01:55.8]} 11. Nxe5 {[%clk 0:02:45.6]}
11... Qxe5 {[%clk 0:01:56.7]} 12. Ne2 {[%clk 0:02:38.6]} 12... Bxd2 {[%clk
0:01:38.2]} 13. Qxd2 {[%clk 0:02:39.5]} 13... dxc4 {[%clk 0:01:35.9]} 14. Bxc4
{[%clk 0:02:38.7]} 14... Bg4 {[%clk 0:01:20.6]} 15. h3 {[%clk 0:02:37.2]} 15...
Bf5 {[%clk 0:01:14.8]} 16. Nd4 {[%clk 0:02:32.6]} 16... Be4 {[%clk 0:01:09.7]}
17. Bd3 {[%clk 0:02:24.3]} 17... c5 {[%clk 0:00:59.9]} 18. Nf3 {[%clk
0:02:10.8]} 18... Bxf3 {[%clk 0:00:51.1]} 19. gxf3 {[%clk 0:02:11.7]} 19... Rad8
{[%clk 0:00:47.7]} 20. Qe2 {[%clk 0:02:11.5]} 20... Qh5 {[%clk 0:00:39.9]} 21.
Kh2 {[%clk 0:02:03.6]} 21... Rd6 {[%clk 0:00:38.5]} 22. f4 {[%clk 0:01:57.3]}
22... Qh4 {[%clk 0:00:26.8]} 23. Rg1 {[%clk 0:01:52.8]} 23... Rfd8 {[%clk
0:00:25.7]} 24. Rad1 {[%clk 0:01:41]} 24... b6 {[%clk 0:00:24.7]} 25. Rg2 {[%clk
0:01:31.3]} 25... g6 {[%clk 0:00:21.7]} 26. f5 {[%clk 0:01:19.8]} 26... Qh5
{[%clk 0:00:18.1]} 27. fxg6 {[%clk 0:01:14.9]} 27... Qxe2 {[%clk 0:00:13.6]} 28.
gxh7+ {[%clk 0:01:12.8]} 28... Kh8 {[%clk 0:00:13.1]} 29. Bxe2 {[%clk
0:01:11.3]} 29... Rxd1 {[%clk 0:00:13.3]} 30. Bxd1 {[%clk 0:01:11.8]} 30... Rxd1
{[%clk 0:00:14]} 31. e4 {[%clk 0:01:12.1]} 31... Nxe4 {[%clk 0:00:11.8]} 32. Rg4
{[%clk 0:01:11.7]} 32... Nf6 {[%clk 0:00:08.7]} 33. Rf4 {[%clk 0:01:11.9]} 33...
Rd6 {[%clk 0:00:09.3]} 34. Rh4 {[%clk 0:01:10.3]} 34... Nxh7 {[%clk 0:00:09.2]}
35. Ra4 {[%clk 0:01:09.2]} 35... Rd7 {[%clk 0:00:09]} 36. Kg3 {[%clk 0:01:09]}
36... Kg7 {[%clk 0:00:09.4]} 37. Kf4 {[%clk 0:01:09.2]} 37... Nf6 {[%clk
0:00:10]} 38. f3 {[%clk 0:01:09]} 38... Nd5+ {[%clk 0:00:09.5]} 39. Kf5 {[%clk
0:01:08.6]} 39... Ne3+ {[%clk 0:00:09.6]} 40. Ke4 {[%clk 0:01:07.7]} 40... Nd5
{[%clk 0:00:09.5]} 41. Kf5 {[%clk 0:01:06.4]} 41... Nf6 {[%clk 0:00:09.5]} 42.
Rh4 {[%clk 0:01:06.4]} 42... Rd5+ {[%clk 0:00:09.7]} 43. Kf4 {[%clk 0:01:03.3]}
43... Rd4+ {[%clk 0:00:10.2]} 0-1

[Event "Early-Titled-Tuesday-Blitz-March-26-2024"]
[Site "Chess.com"]
[Date "2024.03.26"]
[Round "1"]
[White "andrew-blr"]
[Black "IshviAggarwal"]
[Result "1-0"]
[WhiteElo "2594"]
[BlackElo "2186"]
[TimeControl "180+1"]
[EndTime "8:06:37 PDT"]
[Termination "andrew-blr won on time"]

1. d4 {[%clk 0:03:00]} 1... d5 {[%clk 0:02:59.7]} 2. c4 {[%clk 0:02:59.5]} 2...
e6 {[%clk 0:03:00]} 3. Nc3 {[%clk 0:02:59.2]} 3... Nf6 {[%clk 0:03:00.8]} 4.
cxd5 {[%clk 0:02:58.5]} 4... exd5 {[%clk 0:03:01.1]} 5. Bg5 {[%clk 0:02:58.3]}
5... c6 {[%clk 0:03:01.8]} 6. e3 {[%clk 0:02:58.7]} 6... Be7 {[%clk 0:03:02.5]}
7. Bd3 {[%clk 0:02:58.3]} 7... Nbd7 {[%clk 0:03:03]} 8. Qc2 {[%clk 0:02:57]}
8... O-O {[%clk 0:02:56.5]} 9. Nf3 {[%clk 0:02:55.7]} 9... Re8 {[%clk 0:02:57]}
10. h3 {[%clk 0:02:53.6]} 10... Nf8 {[%clk 0:02:56.5]} 11. O-O {[%clk
0:02:51.2]} 11... Be6 {[%clk 0:02:53.3]} 12. Bxf6 {[%clk 0:02:49.1]} 12... Bxf6
{[%clk 0:02:53.1]} 13. b4 {[%clk 0:02:49.6]} 13... b5 {[%clk 0:02:48.8]} 14. a4
{[%clk 0:02:48.9]} 14... a6 {[%clk 0:02:48.3]} 15. Ne2 {[%clk 0:02:42.8]} 15...
Qd6 {[%clk 0:02:42.2]} 16. Rfc1 {[%clk 0:02:35.3]} 16... Qxb4 {[%clk 0:02:25.4]}
17. Qxc6 {[%clk 0:02:12.7]} 17... Rec8 {[%clk 0:02:24.4]} 18. Qb6 {[%clk
0:02:04.4]} 18... Rxc1+ {[%clk 0:01:55.8]} 19. Nxc1 {[%clk 0:02:03.1]} 19... Qc3
{[%clk 0:01:25]} 20. Rb1 {[%clk 0:01:57.5]} 20... bxa4 {[%clk 0:00:51]} 21. Qb7
{[%clk 0:01:57.3]} 21... Qc8 {[%clk 0:00:35.5]} 22. Qb4 {[%clk 0:01:41.5]} 22...
Bd7 {[%clk 0:00:25.3]} 23. Qa5 {[%clk 0:01:39.7]} 23... Ne6 {[%clk 0:00:15]} 24.
Na2 {[%clk 0:01:32.3]} 24... Qc7 {[%clk 0:00:03]} 25. Qxc7 {[%clk 0:01:28.8]}
25... Nxc7 {[%clk 0:00:03.9]} 26. Rb7 {[%clk 0:01:28.5]} 26... Bb5 {[%clk
0:00:02.8]} 27. Nb4 {[%clk 0:01:09]} 27... Bxd3 {[%clk 0:00:02.5]} 28. Nxd3
{[%clk 0:01:07.6]} 28... Nb5 {[%clk 0:00:03.2]} 29. Rb6 {[%clk 0:01:01.7]} 29...
a3 {[%clk 0:00:03.5]} 30. Nb4 {[%clk 0:01:01.5]} 30... Be7 {[%clk 0:00:03.2]}
31. Na2 {[%clk 0:01:01.6]} 31... g6 {[%clk 0:00:03]} 32. Ne5 {[%clk 0:01:00.8]}
32... Rc8 {[%clk 0:00:02.9]} 33. Nc6 {[%clk 0:00:59.9]} 33... Bf8 {[%clk
0:00:01.4]} 34. Rxa6 {[%clk 0:00:59.6]} 1-0